[Event "*** Titled Tuesday Blitz"]
[Site "Chess.com"]
[Date "2021.03.30"]
[Round "1"]
[White "Rytenko_V"]
[Black "Susal_De_Silva"]
[Result "1-0"]
[WhiteElo "2397"]
[BlackElo "2688"]
[TimeControl "180+1"]
[EndTime "10:08:06 PDT"]
[Termination "Rytenko_V won by checkmate"]

1. d4 {[%clk 0:02:59.9]} 1... Nf6 {[%clk 0:03:00.1]} 2. c4 {[%clk 0:02:59.7]}
2... e6 {[%clk 0:03:00.4]} 3. Nc3 {[%clk 0:03:00.4]} 3... Bb4 {[%clk 0:03:00.6]}
4. Bd2 {[%clk 0:03:01]} 4... O-O {[%clk 0:03:00.7]} 5. Nf3 {[%clk 0:03:01.2]}
5... b6 {[%clk 0:03:01]} 6. e3 {[%clk 0:03:01.3]} 6... Bb7 {[%clk 0:03:01.2]} 7.
Bd3 {[%clk 0:03:01.5]} 7... d6 {[%clk 0:03:01.7]} 8. O-O {[%clk 0:03:01.4]} 8...
Nbd7 {[%clk 0:03:02.2]} 9. Ne2 {[%clk 0:02:59]} 9... Bxd2 {[%clk 0:03:01.3]} 10.
Nxd2 {[%clk 0:02:59.2]} 10... e5 {[%clk 0:03:01.2]} 11. Qc2 {[%clk 0:02:58.1]}
11... Qe7 {[%clk 0:03:00.1]} 12. Ne4 {[%clk 0:02:52.4]} 12... Rae8 {[%clk
0:02:52.7]} 13. N2g3 {[%clk 0:02:50.6]} 13... Bxe4 {[%clk 0:02:41.5]} 14. Nxe4
{[%clk 0:02:23]} 14... exd4 {[%clk 0:02:31.3]} 15. Nxf6+ {[%clk 0:02:17.8]}
15... Qxf6 {[%clk 0:02:32.2]} 16. exd4 {[%clk 0:02:13.6]} 16... Qxd4 {[%clk
0:02:31]} 17. Bxh7+ {[%clk 0:02:12.5]} 17... Kh8 {[%clk 0:02:31.3]} 18. Rad1
{[%clk 0:02:04.8]} 18... Qf6 {[%clk 0:02:26.2]} 19. Be4 {[%clk 0:01:50.4]} 19...
Nc5 {[%clk 0:02:19.8]} 20. Bd5 {[%clk 0:01:40.9]} 20... Re5 {[%clk 0:02:19.5]}
21. Rfe1 {[%clk 0:01:31.7]} 21... Rfe8 {[%clk 0:02:18.6]} 22. Rxe5 {[%clk
0:01:28.9]} 22... Qxe5 {[%clk 0:02:19.5]} 23. g3 {[%clk 0:01:22.5]} 23... Qf6
{[%clk 0:02:15.9]} 24. Qd2 {[%clk 0:01:09.3]} 24... g6 {[%clk 0:01:59]} 25. b4
{[%clk 0:01:07.4]} 25... Ne6 {[%clk 0:01:55.6]} 26. Bxe6 {[%clk 0:01:01.7]}
26... Rxe6 {[%clk 0:01:56.5]} 27. a4 {[%clk 0:00:49.7]} 27... Kg7 {[%clk
0:01:54.3]} 28. Kg2 {[%clk 0:00:47]} 28... Re4 {[%clk 0:01:52.8]} 29. Qd3 {[%clk
0:00:46.7]} 29... Qe6 {[%clk 0:01:49.8]} 30. Qc3+ {[%clk 0:00:40.4]} 30... Kg8
{[%clk 0:01:43]} 31. c5 {[%clk 0:00:32.3]} 31... Rc4 {[%clk 0:01:38.7]} 32. Qf3
{[%clk 0:00:20.1]} 32... bxc5 {[%clk 0:01:38.3]} 33. bxc5 {[%clk 0:00:17.1]}
33... Rxc5 {[%clk 0:01:39.2]} 34. Qa8+ {[%clk 0:00:15.9]} 34... Kg7 {[%clk
0:01:39.8]} 35. Qxa7 {[%clk 0:00:16.2]} 35... Qe4+ {[%clk 0:01:38.5]} 36. Kg1
{[%clk 0:00:15.8]} 36... Qe2 {[%clk 0:01:34.3]} 37. Rf1 {[%clk 0:00:12.4]} 37...
Qc4 {[%clk 0:01:30]} 38. Qa8 {[%clk 0:00:07.1]} 38... d5 {[%clk 0:01:26.4]} 39.
Rd1 {[%clk 0:00:06.7]} 39... c6 {[%clk 0:01:26.4]} 40. Qd8 {[%clk 0:00:06.7]}
40... Qxa4 {[%clk 0:01:23.4]} 41. Re1 {[%clk 0:00:06.7]} 41... Qd4 {[%clk
0:01:07.9]} 42. Re8 {[%clk 0:00:04.4]} 42... Kh7 {[%clk 0:01:04.4]} 43. Qd7
{[%clk 0:00:01.9]} 43... Rc1+ {[%clk 0:00:27.8]} 44. Kg2 {[%clk 0:00:01.8]}
44... Kg7 {[%clk 0:00:23.4]} 45. Qh3 {[%clk 0:00:02.7]} 45... Qe4+ {[%clk
0:00:11.5]} 46. Rxe4 {[%clk 0:00:02.9]} 46... dxe4 {[%clk 0:00:12.4]} 47. Qg4
{[%clk 0:00:03.8]} 47... f5 {[%clk 0:00:11.3]} 48. Qf4 {[%clk 0:00:04]} 48...
Rc4 {[%clk 0:00:10.8]} 49. Qe5+ {[%clk 0:00:04.1]} 49... Kh6 {[%clk 0:00:11.2]}
50. Qf4+ {[%clk 0:00:04.2]} 50... Kg7 {[%clk 0:00:11.6]} 51. Qe5+ {[%clk
0:00:04.5]} 51... Kh6 {[%clk 0:00:12.1]} 52. h4 {[%clk 0:00:05.4]} 52... Rc2
{[%clk 0:00:10.3]} 53. Kh3 {[%clk 0:00:04.8]} 53... Rxf2 {[%clk 0:00:10]} 54.
Qh8# {[%clk 0:00:04.9]} 1-0

[Event "*** Titled Tuesday Blitz"]
[Site "Chess.com"]
[Date "2021.03.30"]
[Round "1"]
[White "banane_verte"]
[Black "BilodeauA"]
[Result "0-1"]
[WhiteElo "2458"]
[BlackElo "2910"]
[TimeControl "180+1"]
[EndTime "10:08:15 PDT"]
[Termination "BilodeauA won by resignation"]

1. e4 {[%clk 0:03:00.9]} 1... c5 {[%clk 0:02:56.1]} 2. Nc3 {[%clk 0:02:59.8]}
2... a6 {[%clk 0:02:53.8]} 3. g3 {[%clk 0:02:57.7]} 3... b5 {[%clk 0:02:54]} 4.
Bg2 {[%clk 0:02:58.6]} 4... Bb7 {[%clk 0:02:54.6]} 5. Nge2 {[%clk 0:02:58.5]}
5... e6 {[%clk 0:02:54.7]} 6. O-O {[%clk 0:02:58]} 6... Ne7 {[%clk 0:02:51.8]}
7. d3 {[%clk 0:02:50.1]} 7... h5 {[%clk 0:02:51.8]} 8. Bg5 {[%clk 0:02:45.3]}
8... d6 {[%clk 0:02:45.5]} 9. a4 {[%clk 0:02:39.5]} 9... b4 {[%clk 0:02:44.3]}
10. Nb1 {[%clk 0:02:40]} 10... Qc7 {[%clk 0:02:32.5]} 11. Nd2 {[%clk 0:02:37.7]}
11... h4 {[%clk 0:02:32.3]} 12. Nc4 {[%clk 0:02:30.1]} 12... Ng6 {[%clk
0:02:25.1]} 13. Nf4 {[%clk 0:02:17.9]} 13... Nxf4 {[%clk 0:02:17.8]} 14. Bxf4
{[%clk 0:02:18.8]} 14... Nd7 {[%clk 0:02:13.7]} 15. a5 {[%clk 0:02:10.9]} 15...
Be7 {[%clk 0:02:11.2]} 16. Qg4 {[%clk 0:02:08.9]} 16... g6 {[%clk 0:02:09.5]}
17. Rfe1 {[%clk 0:01:56.4]} 17... Nf6 {[%clk 0:01:52.3]} 18. Qe2 {[%clk
0:01:52.3]} 18... Nh5 {[%clk 0:01:44.7]} 19. Bd2 {[%clk 0:01:44.6]} 19... hxg3
{[%clk 0:01:43.3]} 20. hxg3 {[%clk 0:01:45.1]} 20... e5 {[%clk 0:01:41.1]} 21.
c3 {[%clk 0:01:31.3]} 21... bxc3 {[%clk 0:01:40.1]} 22. bxc3 {[%clk 0:01:32.2]}
22... Kf8 {[%clk 0:01:33.3]} 23. Rab1 {[%clk 0:01:29.1]} 23... Kg7 {[%clk
0:01:31.9]} 24. Be3 {[%clk 0:01:13]} 24... Bc6 {[%clk 0:01:29.1]} 25. Nb6 {[%clk
0:01:09.9]} 25... Rab8 {[%clk 0:01:28.2]} 26. d4 {[%clk 0:01:10]} 26... Nf6
{[%clk 0:01:25]} 27. Bg5 {[%clk 0:01:06.6]} 27... Rh5 {[%clk 0:01:20.9]} 28.
Bxf6+ {[%clk 0:01:05.7]} 28... Bxf6 {[%clk 0:01:21.3]} 29. dxc5 {[%clk
0:01:05.5]} 29... dxc5 {[%clk 0:01:16.9]} 30. Qxa6 {[%clk 0:01:01.4]} 30... Rbh8
{[%clk 0:01:16.1]} 31. Nd5 {[%clk 0:00:54.2]} 31... Bxd5 {[%clk 0:01:16.3]} 32.
exd5 {[%clk 0:00:54.6]} 32... Qd7 {[%clk 0:01:15.1]} 33. Rb7 {[%clk 0:00:46.8]}
33... Qf5 {[%clk 0:00:56.5]} 34. Qa7 {[%clk 0:00:44.6]} 34... Bg5 {[%clk
0:00:39.7]} 35. Be4 {[%clk 0:00:24.9]} 35... Qf6 {[%clk 0:00:37.7]} 36. d6
{[%clk 0:00:19.7]} 36... Rh2 {[%clk 0:00:36]} 37. Bg2 {[%clk 0:00:19.9]} 37...
Bd2 {[%clk 0:00:31.6]} 38. Rxe5 {[%clk 0:00:19.2]} 38... Rxg2+ {[%clk
0:00:19.8]} 39. Kxg2 {[%clk 0:00:19.2]} 39... Qxe5 {[%clk 0:00:20.5]} 40. Rxf7+
{[%clk 0:00:18.7]} 40... Kh6 {[%clk 0:00:21.2]} 41. Qe7 {[%clk 0:00:14.3]} 41...
Qd5+ {[%clk 0:00:20.5]} 42. f3 {[%clk 0:00:12.3]} 42... Bg5 {[%clk 0:00:20.2]}
43. Qe2 {[%clk 0:00:07.2]} 43... Rh7 {[%clk 0:00:15.4]} 44. Rxh7+ {[%clk
0:00:06.9]} 44... Kxh7 {[%clk 0:00:16.3]} 45. a6 {[%clk 0:00:05.6]} 45... Qxd6
{[%clk 0:00:13.1]} 46. f4 {[%clk 0:00:05.9]} 46... Bf6 {[%clk 0:00:12]} 47. a7
{[%clk 0:00:03.9]} 47... Qd5+ {[%clk 0:00:12.2]} 48. Qf3 {[%clk 0:00:04.1]}
48... Qa2+ {[%clk 0:00:12.5]} 49. Kh3 {[%clk 0:00:03.5]} 49... Qxa7 {[%clk
0:00:13.4]} 50. g4 {[%clk 0:00:02.4]} 50... Qa3 {[%clk 0:00:11.2]} 51. g5 {[%clk
0:00:03.3]} 51... Qxc3 {[%clk 0:00:10.5]} 52. Kg4 {[%clk 0:00:01.9]} 52... Qxf3+
{[%clk 0:00:10.7]} 53. Kxf3 {[%clk 0:00:02.8]} 53... Bd4 {[%clk 0:00:11.6]} 54.
Ke4 {[%clk 0:00:02.6]} 54... Kg7 {[%clk 0:00:12.2]} 55. f5 {[%clk 0:00:03.1]}
55... gxf5+ {[%clk 0:00:12.4]} 56. Kxf5 {[%clk 0:00:03.8]} 56... Kf7 {[%clk
0:00:13.1]} 57. Ke4 {[%clk 0:00:03.9]} 57... Kg6 {[%clk 0:00:13.7]} 58. Kf4
{[%clk 0:00:03.5]} 58... Bb2 {[%clk 0:00:13.6]} 59. Ke4 {[%clk 0:00:03]} 59...
Kxg5 {[%clk 0:00:13.5]} 60. Kd5 {[%clk 0:00:03.9]} 60... Bd4 {[%clk 0:00:13.9]}
0-1

[Event "*** Titled Tuesday Blitz"]
[Site "Chess.com"]
[Date "2021.03.30"]
[Round "1"]
[White "agartha01"]
[Black "BlackWidow515"]
[Result "1-0"]
[WhiteElo "2527"]
[BlackElo "2187"]
[TimeControl "180+1"]
[EndTime "10:08:15 PDT"]
[Termination "agartha01 won by checkmate"]

1. d4 {[%clk 0:03:00.8]} 1... d5 {[%clk 0:03:00]} 2. Bf4 {[%clk 0:03:00.9]} 2...
Nf6 {[%clk 0:03:00.2]} 3. Nf3 {[%clk 0:03:00.5]} 3... e6 {[%clk 0:03:00.5]} 4.
e3 {[%clk 0:03:00.3]} 4... Bd6 {[%clk 0:03:01.1]} 5. Bg3 {[%clk 0:03:00.6]} 5...
O-O {[%clk 0:03:01.4]} 6. Nbd2 {[%clk 0:03:00.2]} 6... b6 {[%clk 0:03:01.8]} 7.
Bd3 {[%clk 0:02:58.5]} 7... Bb7 {[%clk 0:03:01.5]} 8. c3 {[%clk 0:02:58.6]} 8...
Qe7 {[%clk 0:03:01.7]} 9. O-O {[%clk 0:02:58.3]} 9... Nbd7 {[%clk 0:03:02.3]}
10. Qe2 {[%clk 0:02:58.3]} 10... e5 {[%clk 0:03:02.6]} 11. dxe5 {[%clk
0:02:50.9]} 11... Nxe5 {[%clk 0:03:02.3]} 12. Nxe5 {[%clk 0:02:51.2]} 12... Bxe5
{[%clk 0:03:02.1]} 13. Nf3 {[%clk 0:02:51.3]} 13... Bxg3 {[%clk 0:03:01.6]} 14.
hxg3 {[%clk 0:02:52.2]} 14... c5 {[%clk 0:03:01.9]} 15. Rad1 {[%clk 0:02:50.1]}
15... Rad8 {[%clk 0:03:01.3]} 16. Rfe1 {[%clk 0:02:48.6]} 16... g6 {[%clk
0:02:57.8]} 17. a3 {[%clk 0:02:47]} 17... a5 {[%clk 0:02:56.4]} 18. b4 {[%clk
0:02:35.1]} 18... axb4 {[%clk 0:02:55.4]} 19. axb4 {[%clk 0:02:36]} 19... cxb4
{[%clk 0:02:55.9]} 20. cxb4 {[%clk 0:02:35.4]} 20... Qxb4 {[%clk 0:02:56.3]} 21.
Nd4 {[%clk 0:02:35.4]} 21... Ne4 {[%clk 0:02:55.3]} 22. Rb1 {[%clk 0:02:26]}
22... Qd6 {[%clk 0:02:46.6]} 23. Qb2 {[%clk 0:02:14.6]} 23... Rb8 {[%clk
0:02:12.7]} 24. Qxb6 {[%clk 0:02:03.2]} 24... Qxb6 {[%clk 0:02:12.7]} 25. Rxb6
{[%clk 0:02:04.1]} 25... Ba8 {[%clk 0:02:13.2]} 26. Ra6 {[%clk 0:01:50.5]} 26...
Rb2 {[%clk 0:02:05.3]} 27. Bxe4 {[%clk 0:01:40.7]} 27... dxe4 {[%clk 0:02:04.4]}
28. Rc1 {[%clk 0:01:35.9]} 28... Bd5 {[%clk 0:02:03.1]} 29. g4 {[%clk 0:01:29]}
29... Rfb8 {[%clk 0:01:58.1]} 30. Rc5 {[%clk 0:01:26.2]} 30... Bb7 {[%clk
0:01:52]} 31. Ra7 {[%clk 0:01:18.4]} 31... Ba8 {[%clk 0:01:31]} 32. g5 {[%clk
0:01:12]} 32... Kg7 {[%clk 0:01:26.7]} 33. Re5 {[%clk 0:00:37.2]} 33... R2b7
{[%clk 0:01:15.4]} 34. Rxb7 {[%clk 0:00:35.3]} 34... Rxb7 {[%clk 0:01:14.8]} 35.
Ra5 {[%clk 0:00:29.5]} 35... Rb1+ {[%clk 0:01:06.9]} 36. Kh2 {[%clk 0:00:29.5]}
36... Bb7 {[%clk 0:01:07.1]} 37. Kg3 {[%clk 0:00:29.5]} 37... Rb2 {[%clk
0:01:04.6]} 38. Re5 {[%clk 0:00:25.2]} 38... Rb6 {[%clk 0:00:52.8]} 39. Re7
{[%clk 0:00:21.6]} 39... Ba8 {[%clk 0:00:50.5]} 40. Kf4 {[%clk 0:00:19.7]} 40...
Bd5 {[%clk 0:00:47.4]} 41. Ke5 {[%clk 0:00:19.3]} 41... Ba8 {[%clk 0:00:47.3]}
42. Ra7 {[%clk 0:00:18.9]} 42... Bb7 {[%clk 0:00:46.7]} 43. g4 {[%clk
0:00:16.1]} 43... h6 {[%clk 0:00:46.4]} 44. Kf4 {[%clk 0:00:15.7]} 44... hxg5+
{[%clk 0:00:45]} 45. Kxg5 {[%clk 0:00:16.6]} 45... f6+ {[%clk 0:00:42.9]} 46.
Kh4 {[%clk 0:00:16]} 46... Kh6 {[%clk 0:00:40.5]} 47. Kg3 {[%clk 0:00:15.4]}
47... Rb2 {[%clk 0:00:40.2]} 48. Ra5 {[%clk 0:00:13.5]} 48... g5 {[%clk
0:00:39.4]} 49. Rc5 {[%clk 0:00:12.6]} 49... Rb1 {[%clk 0:00:32.5]} 50. Rc7
{[%clk 0:00:12.3]} 50... Rg1+ {[%clk 0:00:10.5]} 51. Kh3 {[%clk 0:00:10.4]}
51... Rh1+ {[%clk 0:00:09.8]} 52. Kg2 {[%clk 0:00:10.4]} 52... Rh4 {[%clk
0:00:10.1]} 53. Nf5+ {[%clk 0:00:10.4]} 53... Kg6 {[%clk 0:00:09.9]} 54. Rg7#
{[%clk 0:00:10.3]} 1-0

[Event "*** Titled Tuesday Blitz"]
[Site "Chess.com"]
[Date "2021.03.30"]
[Round "1"]
[White "Hongjin"]
[Black "MrTattaglia"]
[Result "0-1"]
[WhiteElo "2438"]
[BlackElo "2839"]
[TimeControl "180+1"]
[EndTime "10:08:17 PDT"]
[Termination "MrTattaglia won by resignation"]

1. e4 {[%clk 0:02:59.2]} 1... c6 {[%clk 0:02:56.5]} 2. d4 {[%clk 0:02:58.2]}
2... d5 {[%clk 0:02:55.1]} 3. exd5 {[%clk 0:02:59.1]} 3... cxd5 {[%clk
0:02:52.5]} 4. Bd3 {[%clk 0:02:59.3]} 4... Nc6 {[%clk 0:02:52.9]} 5. c3 {[%clk
0:02:59]} 5... Nf6 {[%clk 0:02:48.8]} 6. Nf3 {[%clk 0:02:55.7]} 6... Bg4 {[%clk
0:02:47.2]} 7. h3 {[%clk 0:02:55.7]} 7... Bh5 {[%clk 0:02:46.5]} 8. O-O {[%clk
0:02:55]} 8... e6 {[%clk 0:02:46.5]} 9. Nbd2 {[%clk 0:02:52]} 9... g5 {[%clk
0:02:46]} 10. Qb3 {[%clk 0:02:47.5]} 10... Qc7 {[%clk 0:02:28.4]} 11. Re1 {[%clk
0:02:28.9]} 11... g4 {[%clk 0:02:01.8]} 12. hxg4 {[%clk 0:02:27.2]} 12... Bxg4
{[%clk 0:02:02.7]} 13. Ne5 {[%clk 0:02:22.1]} 13... Rg8 {[%clk 0:01:58]} 14. Nf1
{[%clk 0:02:08.9]} 14... Bd6 {[%clk 0:01:51.1]} 15. f4 {[%clk 0:01:57.8]} 15...
Bh5 {[%clk 0:01:45.7]} 16. Bd2 {[%clk 0:01:44.1]} 16... Ne4 {[%clk 0:01:41.8]}
17. Bxe4 {[%clk 0:01:40.6]} 17... dxe4 {[%clk 0:01:42.7]} 18. Ne3 {[%clk
0:01:25.2]} 18... O-O-O {[%clk 0:01:32.7]} 19. Qc2 {[%clk 0:01:13.8]} 19... Bf3
{[%clk 0:01:29.1]} 20. Kf1 {[%clk 0:00:58]} 20... Bxe5 {[%clk 0:01:10.8]} 21.
fxe5 {[%clk 0:00:55.2]} 21... Bxg2+ {[%clk 0:00:51.6]} 22. Nxg2 {[%clk
0:00:51.3]} 22... Nxd4 {[%clk 0:00:51.7]} 23. Qxe4 {[%clk 0:00:30]} 23... Nf5
{[%clk 0:00:50.1]} 24. Bf4 {[%clk 0:00:27.1]} 24... Rd2 {[%clk 0:00:40.5]} 25.
Bxd2 {[%clk 0:00:16.8]} 25... Ng3+ {[%clk 0:00:40.2]} 26. Kf2 {[%clk 0:00:17.4]}
26... Nxe4+ {[%clk 0:00:39.6]} 27. Rxe4 {[%clk 0:00:18.3]} 27... Qb6+ {[%clk
0:00:37.7]} 28. Rd4 {[%clk 0:00:13.8]} 28... f6 {[%clk 0:00:33.8]} 29. Re1
{[%clk 0:00:13.2]} 29... fxe5 {[%clk 0:00:11.3]} 30. Rxe5 {[%clk 0:00:14.1]}
30... Qxb2 {[%clk 0:00:11.9]} 31. Re2 {[%clk 0:00:13.1]} 31... Qxa2 {[%clk
0:00:11.1]} 32. Be3 {[%clk 0:00:12.2]} 32... Qb3 {[%clk 0:00:09.7]} 33. c4
{[%clk 0:00:11.7]} 33... Qb6 {[%clk 0:00:08.7]} 34. c5 {[%clk 0:00:11.4]} 34...
Qc6 {[%clk 0:00:08.9]} 35. Kf1 {[%clk 0:00:10.4]} 35... e5 {[%clk 0:00:08.9]}
36. Rd6 {[%clk 0:00:09.5]} 36... Qf3+ {[%clk 0:00:08.7]} 37. Rf2 {[%clk
0:00:09]} 37... Qe4 {[%clk 0:00:08.9]} 38. Rdf6 {[%clk 0:00:07.8]} 38... Qd3+
{[%clk 0:00:05.4]} 39. Kg1 {[%clk 0:00:06.9]} 39... Qd1+ {[%clk 0:00:05.3]} 40.
Rf1 {[%clk 0:00:07.4]} 40... Qd8 {[%clk 0:00:04.6]} 41. Rf7 {[%clk 0:00:06.7]}
41... Qd5 {[%clk 0:00:04.1]} 42. Rf8+ {[%clk 0:00:06.6]} 42... Rxf8 {[%clk
0:00:04.7]} 43. Rxf8+ {[%clk 0:00:07.4]} 43... Kc7 {[%clk 0:00:05.2]} 44. Rf2
{[%clk 0:00:07.5]} 44... a5 {[%clk 0:00:04.8]} 45. Rd2 {[%clk 0:00:07.5]} 45...
Qe4 {[%clk 0:00:04.5]} 46. Kf2 {[%clk 0:00:06.9]} 46... a4 {[%clk 0:00:04.7]}
47. Ne1 {[%clk 0:00:07.2]} 47... a3 {[%clk 0:00:04.7]} 48. Nf3 {[%clk
0:00:06.1]} 48... Kc6 {[%clk 0:00:03.3]} 49. Re2 {[%clk 0:00:06.1]} 49... Kc7
{[%clk 0:00:02.9]} 50. Bd4 {[%clk 0:00:05.3]} 50... Qxe2+ {[%clk 0:00:02.3]} 51.
Kxe2 {[%clk 0:00:05.4]} 51... exd4 {[%clk 0:00:02.8]} 52. Nxd4 {[%clk
0:00:06.1]} 52... h5 {[%clk 0:00:03.4]} 53. Kf3 {[%clk 0:00:06]} 53... a2 {[%clk
0:00:02.9]} 54. Nb3 {[%clk 0:00:06.1]} 54... Kc6 {[%clk 0:00:03]} 55. Kf4 {[%clk
0:00:06.5]} 55... Kb5 {[%clk 0:00:03.4]} 56. Kg5 {[%clk 0:00:07]} 56... Kc4
{[%clk 0:00:03.8]} 57. Na1 {[%clk 0:00:07]} 57... Kxc5 {[%clk 0:00:04.2]} 58.
Kxh5 {[%clk 0:00:07.6]} 58... Kd4 {[%clk 0:00:04.8]} 59. Kg4 {[%clk 0:00:08.2]}
59... Kc3 {[%clk 0:00:05.4]} 60. Kf3 {[%clk 0:00:08.7]} 60... Kb2 {[%clk
0:00:06.1]} 61. Ke2 {[%clk 0:00:09.3]} 61... Kxa1 {[%clk 0:00:06.5]} 62. Kd3
{[%clk 0:00:10.1]} 62... Kb1 {[%clk 0:00:07.4]} 63. Kc4 {[%clk 0:00:11]} 63...
a1=Q {[%clk 0:00:08]} 64. Kb5 {[%clk 0:00:11.9]} 0-1

[Event "*** Titled Tuesday Blitz"]
[Site "Chess.com"]
[Date "2021.03.30"]
[Round "1"]
[White "KuzubovYuriy"]
[Black "shnitez"]
[Result "1-0"]
[WhiteElo "2864"]
[BlackElo "2453"]
[TimeControl "180+1"]
[EndTime "10:08:18 PDT"]
[Termination "KuzubovYuriy won by checkmate"]

1. d4 {[%clk 0:02:58.9]} 1... Nf6 {[%clk 0:02:59.8]} 2. Nf3 {[%clk 0:02:59]}
2... e6 {[%clk 0:02:59.7]} 3. c4 {[%clk 0:02:59.2]} 3... b6 {[%clk 0:02:59]} 4.
g3 {[%clk 0:02:59.1]} 4... Bb7 {[%clk 0:02:58.9]} 5. Bg2 {[%clk 0:02:59.5]} 5...
Bb4+ {[%clk 0:02:59.3]} 6. Bd2 {[%clk 0:02:59.5]} 6... c5 {[%clk 0:02:58.6]} 7.
d5 {[%clk 0:02:58.5]} 7... exd5 {[%clk 0:02:46.9]} 8. Nh4 {[%clk 0:02:58.2]}
8... Qc7 {[%clk 0:02:28.6]} 9. O-O {[%clk 0:02:13.4]} 9... O-O {[%clk
0:02:15.6]} 10. Bf4 {[%clk 0:02:06.2]} 10... d6 {[%clk 0:01:59.9]} 11. cxd5
{[%clk 0:02:04.6]} 11... Nbd7 {[%clk 0:01:48.3]} 12. Nc3 {[%clk 0:01:58.4]}
12... a6 {[%clk 0:01:45.3]} 13. a3 {[%clk 0:01:44.9]} 13... Bxc3 {[%clk
0:01:44.3]} 14. bxc3 {[%clk 0:01:45.8]} 14... c4 {[%clk 0:01:36.3]} 15. Nf5
{[%clk 0:01:40.6]} 15... Ne5 {[%clk 0:01:22.2]} 16. Rb1 {[%clk 0:01:37.3]} 16...
Rfe8 {[%clk 0:01:18.1]} 17. Qd2 {[%clk 0:01:22.8]} 17... b5 {[%clk 0:01:14.2]}
18. a4 {[%clk 0:01:03.7]} 18... Qd7 {[%clk 0:00:56.8]} 19. Nxg7 {[%clk
0:00:48.2]} 19... Kxg7 {[%clk 0:00:22.8]} 20. Bh6+ {[%clk 0:00:47.6]} 20... Kh8
{[%clk 0:00:23.4]} 21. Qg5 {[%clk 0:00:47.3]} 21... Nh5 {[%clk 0:00:23.9]} 22.
Qxh5 {[%clk 0:00:46]} 22... f6 {[%clk 0:00:22.1]} 23. axb5 {[%clk 0:00:36.4]}
23... axb5 {[%clk 0:00:23]} 24. Bh3 {[%clk 0:00:34.4]} 24... Qf7 {[%clk
0:00:18.4]} 25. Qxf7 {[%clk 0:00:34.3]} 25... Nxf7 {[%clk 0:00:19.3]} 26. Bf4
{[%clk 0:00:34.6]} 26... Bxd5 {[%clk 0:00:18.8]} 27. Rxb5 {[%clk 0:00:34]} 27...
Be6 {[%clk 0:00:15.2]} 28. Bxe6 {[%clk 0:00:30.9]} 28... Rxe6 {[%clk 0:00:16.1]}
29. e3 {[%clk 0:00:30.6]} 29... Ne5 {[%clk 0:00:14.3]} 30. Rfb1 {[%clk
0:00:25.9]} 30... Re7 {[%clk 0:00:10.2]} 31. Bxe5 {[%clk 0:00:25]} 31... fxe5
{[%clk 0:00:09.4]} 32. Rd5 {[%clk 0:00:23.6]} 32... Rd8 {[%clk 0:00:08.4]} 33.
Rb6 {[%clk 0:00:23.1]} 33... Red7 {[%clk 0:00:07.4]} 34. f4 {[%clk 0:00:22.5]}
34... exf4 {[%clk 0:00:07.2]} 35. gxf4 {[%clk 0:00:22.3]} 35... Kg7 {[%clk
0:00:07.8]} 36. Kf2 {[%clk 0:00:22.6]} 36... Kf6 {[%clk 0:00:07.9]} 37. Rh5
{[%clk 0:00:20.1]} 37... Kg6 {[%clk 0:00:07.8]} 38. Rg5+ {[%clk 0:00:20.4]}
38... Kf6 {[%clk 0:00:08]} 39. Kf3 {[%clk 0:00:20.7]} 39... Rg7 {[%clk
0:00:05.9]} 40. Rxg7 {[%clk 0:00:20.2]} 40... Kxg7 {[%clk 0:00:06.6]} 41. Ke4
{[%clk 0:00:20.4]} 41... Re8+ {[%clk 0:00:03.9]} 42. Kd4 {[%clk 0:00:17.3]}
42... Re6 {[%clk 0:00:04.1]} 43. e4 {[%clk 0:00:16.4]} 43... Kf7 {[%clk
0:00:03.9]} 44. f5 {[%clk 0:00:15.4]} 44... Rh6 {[%clk 0:00:03.4]} 45. Kd5
{[%clk 0:00:15.4]} 45... Ke7 {[%clk 0:00:03.7]} 46. Rb7+ {[%clk 0:00:15.4]}
46... Kd8 {[%clk 0:00:03.9]} 47. Rg7 {[%clk 0:00:15]} 47... Ke8 {[%clk
0:00:04.1]} 48. h3 {[%clk 0:00:12.1]} 48... Kf8 {[%clk 0:00:03.9]} 49. Rc7
{[%clk 0:00:11.3]} 49... Ke8 {[%clk 0:00:04.1]} 50. Rxc4 {[%clk 0:00:11.3]}
50... Kd7 {[%clk 0:00:02.8]} 51. Ra4 {[%clk 0:00:11.5]} 51... Kd8 {[%clk
0:00:02.7]} 52. Ra7 {[%clk 0:00:11.4]} 52... Ke8 {[%clk 0:00:02.9]} 53. c4
{[%clk 0:00:11.6]} 53... Kd8 {[%clk 0:00:03.2]} 54. c5 {[%clk 0:00:11.6]} 54...
dxc5 {[%clk 0:00:03.6]} 55. Kxc5 {[%clk 0:00:12.3]} 55... Rxh3 {[%clk
0:00:03.8]} 56. e5 {[%clk 0:00:11.6]} 56... Rd3 {[%clk 0:00:03.8]} 57. f6 {[%clk
0:00:11.5]} 57... Ke8 {[%clk 0:00:02.7]} 58. Rxh7 {[%clk 0:00:11.3]} 58... Kf8
{[%clk 0:00:02.1]} 59. e6 {[%clk 0:00:11.6]} 59... Kg8 {[%clk 0:00:01.6]} 60.
Rg7+ {[%clk 0:00:11.6]} 60... Kf8 {[%clk 0:00:01.2]} 61. e7+ {[%clk 0:00:11.6]}
61... Ke8 {[%clk 0:00:01.2]} 62. Rg8+ {[%clk 0:00:12.5]} 62... Kd7 {[%clk
0:00:01.6]} 63. e8=Q+ {[%clk 0:00:13.1]} 63... Kc7 {[%clk 0:00:01.2]} 64. Qc8#
{[%clk 0:00:13]} 1-0